bitfinex-derivatives/quotes_SOLF0:USTF0_20241203
["timestamp","ask_amount","ask_price","bid_price","bid_amount"]
[1733212830390,2.1977,227.47,227.3,2.1994]
[1733212830614,2.1977,227.47,227.32,1.10057214]
[1733212830921,2.1977,227.47,227.3,2.1994]
[1733212831113,2.1977,227.47,227.31,1.10061717]
[1733212831411,68.16461677,227.5,227.27,3.9735]
[1733212831412,2.1976,227.49,227.27,3.9735]
[1733212832500,68.16461677,227.5,227.28,2.86158256]
[1733212832988,68.16461677,227.5,227.29,2.86158256]
[1733212832989,65.54461677,227.5,227.29,2.86158256]
[1733212833006,65.54461677,227.5,227.3,2.86158256]
[1733212833022,2.62,227.49,227.31,2.86158256]
[1733212833032,2.62,227.48,227.32,1.10061614]
[1733212833050,2.62,227.47,227.33,3.72061614]
[1733212833059,2.62,227.47,227.36,2.1988]
[1733212833110,2.62,227.47,227.37,2.6674]
[1733212835877,2.62,227.5,227.38,1.1002761]
[1733212835891,2.62,227.5,227.37,2.6674]
[1733212835892,2.62,227.5,227.39,1.1002761]
[1733212835911,2.62,227.5,227.39,2.62]
[1733212835919,65.54098772,227.51,227.4,1.10015104]
[1733212835927,65.54098772,227.51,227.44,2.198]
[1733212835932,65.54098772,227.51,227.41,1.1000979]
[1733212835933,2.62,227.53,227.39,2.62]
[1733212835964,2.62,227.53,227.4,2.8601942]
[1733212836040,2.62,227.53,227.39,2.62]
[1733212836041,2.6,227.56,227.45,1.3343]
[1733212836213,2.6,227.56,227.46,3.5445]
[1733212836433,2.6,227.56,227.47,1.2761]
[1733212838887,2.6,227.56,227.45,1.3343]
[1733212838897,2.6,227.56,227.4,1.3989]
[1733212838918,2.6,227.56,227.23,45.78]
[1733212838919,2.6,227.56,227.32,0.1816849]
[1733212838934,65.54014845,227.51,227.33,5.06095442]
[1733212838944,2.6,227.5,227.34,1.10020748]
[1733212841722,2.6,227.5,227.35,1.10039888]
[1733212841728,2.6,227.5,227.33,2.199]
[1733212841754,2.1975,227.49,227.34,1.10040404]
[1733212841764,2.6,227.5,227.31,3.4836]
[1733212841774,2.6,227.5,227.32,2.86109214]
[1733212841781,2.6,227.5,227.33,1.10042005]
[1733212841789,2.6,227.5,227.34,1.10042005]
[1733212841797,2.6,227.5,227.31,1.2844]
[1733212841812,4.7975,227.5,227.32,1.10046931]
[1733212841827,2.6,227.5,227.33,1.10049478]
[1733212841835,2.6,227.5,227.34,1.10046359]
[1733212841859,2.6,227.5,227.31,1.2844]
[1733212841868,2.6,227.5,227.32,2.86113365]
[1733212841927,2.6,227.5,227.34,2.1989]
[1733212842418,2.6,227.5,227.31,1.2844]
[1733212842620,2.6,227.5,227.32,2.86125548]
[1733212842621,1.3934,227.49,227.32,2.86125548]
[1733212842917,1.3934,227.49,227.33,1.10048288]
[1733212843117,1.3934,227.49,227.34,1.10048288]
[1733212843310,1.3934,227.49,227.31,1.2844]
[1733212843516,1.3934,227.49,227.32,2.86125104]
[1733212844162,1.3934,227.49,227.33,1.10048117]
[1733212845371,1.3934,227.49,227.32,2.1992]
[1733212845390,1.3934,227.49,227.33,1.10048415]
[1733212845408,1.3934,227.49,227.31,1.2844]
[1733212845409,3.5909,227.49,227.34,1.10048415]
[1733212845426,1.3934,227.49,227.34,1.10048415]
[1733212845455,1.3934,227.49,227.31,1.2844]
[1733212845468,1.3934,227.49,227.32,2.86126343]
[1733212848257,1.3934,227.49,227.33,5.06036343]
[1733212848265,1.3934,227.49,227.34,1.10048593]
[1733212848273,1.3934,227.49,227.31,1.2844]
[1733212848302,3.591,227.49,227.31,1.2844]
[1733212848311,3.591,227.49,227.32,1.10061637]
[1733212848312,1.3934,227.49,227.32,1.10061637]
[1733212848324,1.3934,227.49,227.29,2.7456]
[1733212848325,1.3934,227.49,227.29,1.3989]
[1733212848338,2.1981,227.43,227.24,2.1999]
[1733212848355,2.6,227.42,227.25,2.86212099]
[1733212848377,4.7982,227.42,227.26,1.76130592]
[1733212848385,4.7982,227.42,227.27,1.1008162]
[1733212848411,4.7982,227.42,227.28,1.1008162]
[1733212848419,4.7982,227.42,227.2,2.7804336]
[1733212848430,2.1985,227.39,227.21,5.24423366]
[1733212848504,3.4705,227.42,227.22,5.06380006]
[1733212848624,3.4705,227.42,227.23,5.06380006]
[1733212848821,2.1985,227.4,227.24,1.1008261]
[1733212849021,2.1985,227.4,227.21,2.2002]
[1733212849022,3.4705,227.42,227.25,1.1008261]
[1733212849223,3.4705,227.42,227.26,1.10095763]
[1733212849418,3.4705,227.42,227.19,3.989]
[1733212849624,3.4705,227.42,227.2,5.06452709]
[1733212849961,2.1984,227.41,227.21,5.06452709]
[1733212851138,2.1984,227.41,227.22,2.86255879]
[1733212851342,2.1984,227.41,227.23,2.86255879]
[1733212851358,2.1984,227.4,227.24,2.86255879]
[1733212851365,2.1984,227.4,227.22,2.2001]
[1733212851366,2.1984,227.4,227.25,1.10098415]
[1733212851377,65.57677582,227.41,227.26,1.10098891]
[1733212851381,65.57677582,227.41,227.19,3.989]
[1733212851426,1.3109,227.4,227.2,5.06455878]
[1733212851625,1.3109,227.4,227.21,5.06455878]
[1733212851823,2.1986,227.38,227.22,2.8625767]
[1733212854379,2.1986,227.38,227.23,2.8625767]
[1733212854388,2.1986,227.38,227.24,2.86257691]
[1733212854402,2.1986,227.38,227.25,1.10099104]
[1733212854410,2.1986,227.38,227.26,1.10099104]
[1733212854418,2.1986,227.38,227.21,2.2002]
[1733212854450,2.1986,227.38,227.22,5.06457815]
[1733212854458,2.1986,227.38,227.23,2.86258765]
[1733212854463,2.1986,227.38,227.24,2.86258765]
[1733212854479,2.1986,227.38,227.25,1.10099525]
[1733212854488,2.1986,227.38,227.26,1.10099525]
[1733212854512,2.1986,227.38,227.21,2.2002]
[1733212854623,1.1534,227.37,227.22,5.06457732]
[1733212854819,2.6,227.36,227.23,2.86258718]
[1733212855023,2.6,227.36,227.24,1.10099507]
[1733212855222,2.6,227.36,227.25,1.10099507]
[1733212855426,2.6,227.36,227.2,2.2003]
[1733212855720,2.6,227.36,227.21,5.06462486]
[1733212855927,2.6,227.36,227.22,2.86261405]
[1733212856230,4.7988,227.36,227.23,2.86261405]
[1733212856429,4.7988,227.36,227.24,1.1010054]
[1733212857140,4.7988,227.36,227.25,1.1010054]
[1733212857695,4.7988,227.36,227.19,4.8488]
[1733212857958,4.7988,227.36,227.2,5.06476732]
[1733212857980,2.6,227.36,227.24,2.1999]
[1733212857988,2.6,227.36,227.19,2.6484]
[1733212857989,2.6,227.36,227.25,1.10101581]
[1733212858000,2.6,227.36,227.26,1.10101581]
[1733212858033,2.6,227.36,227.27,1.10101581]
[1733212858233,2.6,227.36,227.28,1.10101581]
[1733212858433,2.6,227.36,227.2,2.78051386]
[1733212860806,2.6,227.36,227.21,5.24438786]
[1733212860819,2.6,227.36,227.22,5.063874]
[1733212860827,2.6,227.36,227.23,5.063874]
[1733212860833,2.6,227.36,227.21,0.18051386]
[1733212860834,2.6,227.36,227.24,5.063874]
[1733212860859,2.6,227.36,227.25,2.86218965]
[1733212860867,2.6,227.36,227.26,2.86218965]
[1733212860878,65.57677582,227.38,227.21,0.18051386]
[1733212860879,65.57677582,227.38,227.27,1.10084217]
[1733212860887,2.6,227.36,227.28,1.10084217]
[1733212860894,65.57677582,227.38,227.37,2.1987]
[1733212860915,2.6,227.41,227.27,2.6]
[1733212861128,2.6,227.41,227.29,1.2783]
[1733212861335,2.6,227.41,227.4,2.1984]
[1733212864451,3.3711,227.52,227.3,1.3796]
[1733212864527,2.6,227.51,227.46,2.1977]
[1733212864636,2.6,227.51,227.3,1.3796]
[1733212867627,2.6,227.51,227.31,2.86112997]
[1733212867637,2.6,227.51,227.32,2.86112997]
[1733212867643,2.6,227.51,227.33,2.86112997]
[1733212867648,2.6,227.51,227.34,2.86095893]
[1733212867675,2.6,227.51,227.35,1.1004346]
[1733212867686,4.7973,227.51,227.36,1.1004346]
[1733212867695,2.6,227.51,227.3,1.3796]
[1733212867717,2.6,227.51,227.31,7.20727637]
[1733212867725,2.6,227.5,227.32,5.06152099]
[1733212867733,2.6,227.49,227.33,7.66152099]
[1733212867740,2.6,227.5,227.34,5.06152099]
[1733212867747,2.6,227.5,227.35,5.06152099]
[1733212867754,2.6,227.5,227.33,2.6]
[1733212867757,2.6,227.5,227.45,2.1979]
[1733212867763,2.6,227.5,227.33,2.6]
[1733212867832,2.6,227.5,227.34,2.86064255]
[1733212868036,2.6,227.5,227.35,2.86068958]
[1733212868235,2.6,227.5,227.36,1.10024713]
[1733212868439,2.6,227.5,227.3,1.3796]
[1733212868635,2.6,227.5,227.31,5.06126886]
[1733212869390,2.6,227.5,227.32,1.10027584]
[1733212870392,2.1976,227.48,227.42,2.1982]
[1733212870424,2.6,227.5,227.42,2.1982]
[1733212870441,2.6,227.5,227.3,1.3796]
[1733212870453,2.6,227.5,227.31,1.10045505]
[1733212870464,2.6,227.5,227.3,1.3796]
[1733212870538,2.6,227.5,227.31,1.10049547]
[1733212870740,2.1978,227.47,227.3,1.3796]
[1733212873253,2.4417,227.46,227.31,1.10049704]
[1733212873263,2.4417,227.46,227.21,2.6]
[1733212873269,2.4417,227.46,227.22,5.06330847]
[1733212873278,2.1984,227.4,227.33,2.199]
[1733212873285,2.6,227.39,227.21,2.6]
[1733212873294,2.6,227.38,227.22,2.86190325]
[1733212873324,65.56246165,227.45,227.23,2.86190325]
[1733212873325,2.6,227.37,227.23,2.86190325]
[1733212873336,2.6,227.36,227.24,1.10073202]
[1733212873341,65.56246165,227.45,227.21,2.6]
[1733212873342,2.6,227.35,227.25,1.10073202]
[1733212873346,2.6,227.34,227.18,4.58135024]
[1733212873353,2.6,227.33,227.19,5.06352468]
[1733212873441,2.6,227.32,227.31,2.1993]
[1733212873635,2.6,227.32,227.19,3.9262]
[1733212873838,2.6,227.32,227.31,2.1993]
[1733212874036,65.56246165,227.45,227.23,2.6]
[1733212874037,2.6,227.37,227.23,2.6]
[1733212874236,2.6,227.38,227.24,3.30163509]
[1733212874434,2.6,227.38,227.37,2.1987]
[1733212875246,65.56246165,227.45,227.31,2.1993]
[1733212876306,2.6,227.44,227.32,2.44782919]
[1733212876825,2.6,227.44,227.4,2.1983]
[1733212876839,2.6,227.44,227.32,1.3474]
[1733212876852,2.6,227.44,227.35,2.1988]
[1733212876864,2.6,227.44,227.32,1.3474]
[1733212876944,65.56246165,227.45,227.43,2.1981]
[1733212877144,2.6,227.44,227.32,1.3474]
[1733212879717,2.6,227.44,227.43,2.1981]
[1733212883203,1.3032,227.55,227.33,2.20429598]
[1733212883467,2.6,227.54,227.52,2.1972]
[1733212883661,2.6,227.53,227.52,2.1972]
[1733212887585,2.5222,227.59,227.41,2.6]
[1733212887591,2.6,227.57,227.55,2.1969]
[1733212889159,2.6,227.57,227.42,3.956]
[1733212889871,2.6,227.57,227.56,2.1968]
[1733212889966,2.6,227.57,227.54,2.197]
[1733212890058,2.4338,227.61,227.42,3.956]
[1733212890265,2.6,227.57,227.42,3.956]
[1733212892894,2.6,227.57,227.43,3.69986275]
[1733212892900,2.6,227.57,227.42,3.956]
[1733212892921,2.6,227.57,227.53,2.1971]
[1733212892946,2.6,227.57,227.42,3.956]
[1733212892957,2.6,227.57,227.56,2.1968]
[1733212892963,1.2835,227.7,227.45,2.6]
[1733212892973,2.6,227.69,227.45,2.6]
[1733212892997,65.51182957,227.66,227.59,2.1965]
[1733212893006,65.51182957,227.66,227.45,2.6]
[1733212893013,2.1961,227.64,227.57,2.1967]
[1733212893021,2.6,227.63,227.45,2.6]
[1733212893553,2.6,227.63,227.46,2.17237559]
[1733212893754,2.6,227.63,227.47,1.0997071]
[1733212894772,2.6,227.63,227.61,2.1963]
[1733212895979,2.6,227.63,227.51,0.17948582]
[1733212898823,2.6,227.63,227.52,5.05855187]
[1733212898832,2.6,227.63,227.53,3.95894169]
[1733212898857,2.6,227.63,227.54,2.85923566]
[1733212898868,2.6,227.63,227.53,2.1971]
[1733212898899,2.1966,227.59,227.53,2.1971]
[1733212898952,2.1967,227.58,227.45,0.17916515]
[1733212898957,2.58,227.57,227.46,5.05986297]
[1733212898970,2.58,227.57,227.47,5.05986297]
[1733212899031,2.58,227.57,227.48,5.05986297]
[1733212899072,2.58,227.57,227.49,5.05986297]
[1733212899289,2.58,227.57,227.5,2.85992255]
[1733212899473,2.58,227.57,227.52,2.1971]
[1733212900365,2.58,227.57,227.53,2.1971]
[1733212901984,2.58,227.57,227.46,0.17916515]
[1733212902005,2.58,227.57,227.47,5.23910555]
[1733212902020,2.58,227.57,227.48,5.06020276]
[1733212902049,2.58,227.57,227.49,2.85996631]
[1733212902058,2.58,227.57,227.5,2.85996631]
[1733212902275,4.7768,227.57,227.5,2.1974]
[1733212905745,2.1969,227.56,227.5,2.1974]
[1733212905810,2.1973,227.52,227.47,0.17916515]
[1733212905823,2.58,227.51,227.45,2.1978]
[1733212905834,2.58,227.5,227.46,5.06098679]
[1733212905841,2.58,227.49,227.47,5.06098679]
[1733212905852,2.58,227.48,227.44,0.17916515]
[1733212905866,2.58,227.48,227.45,5.06094702]
[1733212905892,2.58,227.48,227.46,2.86053527]
[1733212905901,2.58,227.48,227.43,2.37726515]
[1733212905914,2.58,227.48,227.44,5.06127875]
[1733212905921,2.58,227.48,227.35,1.3545]
[1733212905922,2.58,227.48,227.41,0.17916515]
[1733212906021,2.58,227.48,227.42,3.30111741]
[1733212906032,2.58,227.48,227.41,0.17916515]
[1733212906478,2.58,227.48,227.4,0.17916515]
[1733212906676,2.1983,227.42,227.4,0.17916515]
[1733212907009,2.22128885,227.49,227.37,0.17916515]
[1733212907010,2.6,227.41,227.37,0.17916515]
[1733212908013,2.6,227.4,227.38,3.96207772]
[1733212908431,2.6,227.39,227.38,1.76092343]
[1733212908454,2.6,227.39,227.38,7.26132947]
[1733212911374,2.6,227.39,227.38,2.1986]
[1733212911402,2.6,227.39,227.38,7.26113571]
[1733212911414,2.6,227.39,227.38,7.44079171]
[1733212911426,2.6,227.43,227.42,2.1982]
[1733212911436,2.6,227.44,227.42,2.86143323]
[1733212911444,2.6,227.44,227.38,0.179656]
[1733212911455,2.6,227.44,227.39,5.06215676]
[1733212911486,2.6,227.44,227.4,5.06215676]
[1733212911492,2.6,227.44,227.41,2.86121904]
[1733212911497,2.6,227.44,227.42,1.10046886]
[1733212911557,2.6,227.44,227.36,0.179656]
[1733212911576,2.6,227.44,227.39,2.1985]
[1733212911777,2.6,227.44,227.4,2.86120708]
[1733212911984,2.6,227.44,227.41,2.86120708]
[1733212912173,2.6,227.44,227.42,1.10046426]
[1733212912373,2.6,227.44,227.35,0.179656]
[1733212912681,2.6,227.44,227.36,5.24181659]
[1733212912884,2.6,227.44,227.37,5.06216059]
[1733212914167,2.6,227.44,227.38,5.06216059]
[1733212914709,2.6,227.49,227.39,5.06216059]
[1733212914726,2.6,227.5,227.4,5.06216059]
[1733212914745,2.6,227.5,227.43,2.198]
[1733212914756,2.6,227.5,227.44,2.8612212]
[1733212914769,2.6,227.5,227.45,1.10046969]
[1733212914781,2.6,227.5,227.38,0.179656]
[1733212914883,2.6,227.5,227.39,5.06098104]
[1733212917577,2.6,227.5,227.46,2.1978]
[1733212917630,2.6,227.5,227.44,2.1979]
[1733212917639,2.6,227.5,227.45,1.10022989]
[1733212917645,2.6,227.5,227.38,0.17989836]
[1733212917652,2.6,227.5,227.45,2.1978]
[1733212917662,2.6,227.5,227.38,0.17989836]
[1733212917666,2.6,227.5,227.39,5.24097968]
[1733212917695,2.6,227.5,227.4,5.24097968]
[1733212917701,2.6,227.5,227.41,5.24097968]
[1733212917706,2.6,227.5,227.49,2.1975]
[1733212917775,2.6,227.5,227.49,3.29752482]
[1733212918778,2.6,227.5,227.49,5.05745041]
[1733212918986,2.6,227.5,227.49,3.29752482]
[1733212919832,2.6,227.51,227.5,2.1974]
[1733212920666,2.6,227.51,227.5,3.29742482]
[1733212920727,2.6,227.51,227.5,1.10002482]
[1733212923500,2.6,227.51,227.4,0.17989836]
[1733212923533,2.6,227.51,227.41,5.06091349]
[1733212923543,2.6,227.51,227.42,5.06091349]
[1733212923559,2.6,227.51,227.48,2.1976]
[1733212923595,2.6,227.51,227.49,1.10009999]
[1733212923601,2.6,227.51,227.5,3.29749999]
[1733212923652,2.6,227.56,227.5,2.86005212]
[1733212923750,2.6,227.56,227.51,2.86003384]
[1733212923755,2.6,227.56,227.53,2.197]
[1733212923877,2.6,227.56,227.54,1.10009999]
[1733212924077,2.6,227.56,227.46,1.3981]
[1733212924324,2.6,227.56,227.47,1.3042]
[1733212924594,2.6,227.59,227.55,1.0998129]
[1733212926286,2.6,227.59,227.49,0.1804264]
[1733212926940,2.6,227.59,227.57,2.1967]
[1733212926970,2.6,227.59,227.49,0.18050585]
[1733212926992,45.76,227.68,227.5,2.8592802]
[1733212926993,2.58,227.62,227.5,2.8592802]
[1733212927013,2.58,227.63,227.51,2.8592802]
[1733212927032,2.58,227.63,227.52,2.8592802]
[1733212927071,2.58,227.63,227.53,2.8592802]
[1733212927092,2.58,227.63,227.59,2.1965]
[1733212929942,2.58,227.63,227.49,0.18050585]
[1733212929970,2.58,227.63,227.5,2.85907826]
[1733212929987,2.58,227.63,227.51,2.85907826]
[1733212930005,2.58,227.63,227.52,5.05856047]
[1733212930026,2.58,227.63,227.56,2.1968]
[1733212930032,2.58,227.63,227.53,2.19948221]
[1733212930041,2.58,227.63,227.54,3.95874245]
[1733212930073,2.58,227.63,227.54,1.75944109]
[1733212930083,2.58,227.63,227.55,2.85908657]
[1733212930090,2.58,227.63,227.56,1.75949858]
[1733212930106,2.58,227.63,227.57,1.09968661]
[1733212930129,2.58,227.63,227.58,1.09968661]
[1733212930137,2.58,227.63,227.51,0.18056114]
[1733212930143,2.58,227.64,227.52,5.23892317]
[1733212930150,2.58,227.64,227.61,2.1963]
[1733212930159,2.58,227.64,227.52,0.18056114]
[1733212930166,45.76,227.68,227.53,5.05832523]
[1733212930223,2.58,227.67,227.55,1.3764]
[1733212930228,2.58,227.67,227.56,4.12045339]
[1733212930777,2.58,227.67,227.66,2.1959]
[1733212931726,65.49272492,227.71,227.56,1.2614]
[1733212931975,2.58,227.7,227.57,2.85894333]
[1733212931996,2.58,227.7,227.58,2.85894333]
[1733212932013,65.49272492,227.71,227.59,1.09959359]
[1733212932042,68.07272492,227.71,227.6,2.85886851]
[1733212932054,68.07272492,227.71,227.61,5.05742351]
[1733212932063,68.07272492,227.71,227.62,2.85886851]
[1733212934867,68.07272492,227.71,227.63,2.85886851]
[1733212934897,68.07272492,227.71,227.64,1.09959359]
[1733212934904,2.58,227.71,227.65,1.09959359]
[1733212934913,2.58,227.71,227.58,0.18056114]
[1733212934926,2.58,227.71,227.59,5.05665718]
[1733212934936,2.58,227.71,227.6,5.05665718]
[1733212934943,2.58,227.71,227.61,2.85811058]
[1733212934952,2.58,227.71,227.64,2.196]
[1733212934982,2.58,227.71,227.65,1.09926806]
[1733212935000,2.58,227.71,227.63,2.1962]
[1733212935099,2.1955,227.7,227.63,2.1962]
[1733212935298,2.58,227.71,227.64,2.1961]
[1733212935795,2.58,227.71,227.57,1.2874]
[1733212935989,2.58,227.71,227.58,1.09943214]
[1733212936677,1.2639,227.7,227.56,1.2614]
[1733212937351,1.2639,227.7,227.58,2.1966]
[1733212937352,2.1958,227.67,227.58,2.1966]
[1733212937675,2.1958,227.67,227.56,1.2614]
[1733212937691,2.1958,227.67,227.57,1.09958593]
[1733212937703,1.2639,227.7,227.58,1.09958593]
[1733212937721,2.58,227.71,227.56,1.2614]
[1733212937732,1.3656,227.7,227.57,1.09957918]
[1733212937796,1.3656,227.7,227.58,2.1966]
[1733212937797,2.1959,227.66,227.58,2.1966]
[1733212937991,2.58,227.65,227.56,1.2614]
[1733212940489,2.58,227.65,227.6,2.1964]
[1733212940499,2.58,227.65,227.56,1.2614]
[1733212940523,2.58,227.65,227.57,1.09957046]
[1733212940534,2.58,227.65,227.63,2.1961]
[1733212940541,2.58,227.65,227.56,1.2614]
[1733212940550,2.58,227.65,227.57,1.09957852]
[1733212940556,2.58,227.65,227.64,2.1961]
[1733212940586,2.58,227.69,227.56,1.2614]
[1733212940616,3.3449,227.75,227.57,5.05712666]
[1733212940624,3.3449,227.75,227.58,5.05712666]
[1733212940625,2.58,227.74,227.58,5.05712666]
[1733212940702,2.58,227.74,227.69,2.1956]
[1733212941202,2.58,227.74,227.58,0.18056114]
[1733212941405,2.58,227.74,227.59,5.05662047]
[1733212941701,2.58,227.74,227.6,5.05662047]
[1733212942337,2.58,227.74,227.61,5.05662535]
[1733212943487,2.58,227.74,227.7,2.1955]
[1733212943601,2.58,227.74,227.58,0.17979467]
[1733212943797,2.58,227.74,227.59,5.05664011]
[1733212946414,2.58,227.74,227.6,5.05664011]
[1733212946436,2.58,227.74,227.57,1.3206]
[1733212946437,2.58,227.74,227.61,2.85810093]
[1733212946444,2.58,227.74,227.62,1.09926959]
[1733212946459,2.58,227.74,227.63,1.09926959]
[1733212946471,2.58,227.74,227.57,1.3206]
[1733212946482,2.58,227.74,227.58,5.05711746]
[1733212946493,2.58,227.74,227.57,1.3206]
[1733212946494,2.58,227.74,227.59,5.05717718]
[1733212946503,2.58,227.74,227.6,2.85840449]
[1733212946513,2.58,227.74,227.61,1.09938634]
[1733212946539,2.58,227.74,227.56,1.2614]
[1733212946550,2.58,227.74,227.57,5.05735051]
[1733212946622,2.58,227.74,227.58,5.05527018]
[1733212946799,2.1962,227.63,227.5,0.17975107]
[1733212946995,2.58,227.62,227.51,5.0582393]
[1733212947196,2.58,227.62,227.49,0.17975107]
[1733212947197,2.58,227.61,227.52,2.85900482]
[1733212947392,2.58,227.6,227.53,2.85900482]
[1733212947596,2.0174,227.66,227.42,0.17975107]
[1733212947597,2.58,227.59,227.42,0.17975107]
[1733212947801,2.58,227.58,227.43,5.06043771]
[1733212948003,4.7768,227.57,227.5,2.1974]
[1733212948803,2.58,227.56,227.5,2.1974]
[1733212949581,4.7769,227.56,227.49,2.1975]
[1733212949620,2.58,227.56,227.42,0.17975107]
[1733212949636,2.58,227.56,227.43,5.06034037]
[1733212952614,2.58,227.56,227.44,5.06034037]
[1733212952647,2.58,227.56,227.45,2.86019238]
[1733212952663,2.58,227.56,227.46,2.86019238]
[1733212952670,2.58,227.56,227.39,0.17975107]
[1733212952679,2.58,227.56,227.41,2.1982]
[1733212952687,2.58,227.56,227.42,1.10027265]
[1733212952712,2.58,227.56,227.35,0.17975107]
[1733212952721,2.58,227.56,227.4,2.1984]
[1733212952722,2.1978,227.46,227.4,2.1984]
[1733212952736,2.58,227.45,227.33,2.7171]
[1733212952743,2.58,227.45,227.34,5.06252116]
[1733212952751,2.58,227.45,227.35,2.861425]
[1733212952756,2.58,227.45,227.36,5.06252116]
[1733212952760,2.58,227.45,227.37,2.861425]
[1733212952805,2.58,227.45,227.38,2.861425]
[1733212953003,2.58,227.45,227.39,1.10054808]
[1733212953207,2.58,227.45,227.4,3.29884808]
[1733212953403,1.309,227.49,227.35,0.17975107]
[1733212953608,2.58,227.48,227.36,5.06238639]
[1733212954920,2.58,227.48,227.37,5.06238639]
[1733212955175,2.58,227.47,227.38,5.24213746]
[1733212955188,2.58,227.46,227.39,5.24213746]
[1733212955207,2.58,227.46,227.4,5.06238639]
[1733212955231,2.58,227.46,227.41,5.06238639]
[1733212955246,2.58,227.46,227.42,5.06238639]
[1733212955251,2.58,227.46,227.43,5.06238639]
[1733212955309,2.58,227.46,227.44,5.06238639]
[1733212957949,2.58,227.46,227.45,2.86134883]
[1733212957984,46.08101233,227.63,227.45,2.86134883]
[1733212957993,2.58,227.62,227.46,2.86134883]
[1733212958000,2.58,227.62,227.47,2.86134883]
[1733212958013,2.1969,227.55,227.47,2.1977]
[1733212958023,2.58,227.54,227.42,0.17975107]
[1733212958031,2.58,227.54,227.43,5.0612179]
[1733212958042,2.58,227.54,227.44,5.0612179]
[1733212958072,2.58,227.54,227.45,5.0612179]
[1733212958080,2.58,227.54,227.46,2.86068838]
[1733212958086,2.58,227.54,227.42,0.17975107]
[1733212958140,2.58,227.54,227.43,5.06125915]
[1733212958310,2.58,227.54,227.4,1.3653]
[1733212958311,2.58,227.53,227.4,1.3653]
[1733212958812,2.58,227.53,227.42,0.18049551]
[1733212959112,2.58,227.53,227.48,2.1976]
[1733212959418,2.58,227.52,227.49,1.10016786]
[1733212959614,2.58,227.51,227.48,2.1976]
[1733212959941,2.197,227.55,227.49,2.86043645]
[1733212961120,2.58,227.54,227.49,2.1975]
[1733212961329,2.58,227.54,227.44,0.18049551]
[1733212961330,2.1968,227.57,227.44,0.18049551]
[1733212961347,2.58,227.56,227.45,5.24116352]
[1733212961359,2.58,227.56,227.46,5.06066801]
[1733212961367,2.1969,227.55,227.47,5.06066801]
[1733212961382,2.1969,227.55,227.48,5.06066801]
[1733212961417,2.1969,227.55,227.49,2.86037757]
[1733212961613,2.58,227.56,227.47,2.1976]
[1733212964211,2.1971,227.54,227.48,5.06058916]
[1733212964252,2.58,227.56,227.44,0.18049551]
[1733212964267,2.58,227.56,227.45,5.06071309]
[1733212964282,2.58,227.56,227.46,5.06071309]
[1733212964295,2.58,227.56,227.41,0.18049551]
[1733212964308,2.1974,227.5,227.44,2.198]
[1733212964324,2.58,227.49,227.44,2.198]
[1733212964351,2.58,227.49,227.45,2.86086848]
[1733212964364,2.58,227.49,227.45,2.1979]
[1733212964531,2.58,227.49,227.46,1.76043914]
[1733212964544,2.58,227.49,227.46,1.10027446]
[1733212964817,4.7775,227.49,227.44,2.1979]
[1733212965126,4.7775,227.49,227.45,2.86080374]
[1733212965427,4.7775,227.49,227.43,2.1981]
[1733212965621,4.7775,227.49,227.44,2.8608939]
[1733212966585,4.7775,227.49,227.45,2.8608939]
[1733212967344,4.7775,227.49,227.43,2.1981]